[Event "*** Titled Tuesday Blitz"]
[Site "Chess.com"]
[Date "2020.05.19"]
[Round "3"]
[White "2007checkmate"]
[Black "Love_craft"]
[Result "1-0"]
[WhiteElo "2407"]
[BlackElo "2552"]
[TimeControl "180+1"]
[EndTime "12:28:15 PDT"]
[Termination "2007checkmate won on time"]

1. Nc3 {[%clk 0:03:00.9]} 1... d5 {[%clk 0:02:59]} 2. d4 {[%clk 0:03:01]} 2...
Nf6 {[%clk 0:02:57.9]} 3. Bf4 {[%clk 0:03:00.5]} 3... c6 {[%clk 0:02:56]} 4. f3
{[%clk 0:03:00.6]} 4... b5 {[%clk 0:02:50.3]} 5. e3 {[%clk 0:02:56.7]} 5... Nbd7
{[%clk 0:02:44.7]} 6. Bd3 {[%clk 0:02:54.6]} 6... e6 {[%clk 0:02:44]} 7. Nge2
{[%clk 0:02:49.4]} 7... Nh5 {[%clk 0:02:38.8]} 8. e4 {[%clk 0:02:39.9]} 8...
Nxf4 {[%clk 0:02:37.4]} 9. Nxf4 {[%clk 0:02:40.8]} 9... b4 {[%clk 0:02:22.2]}
10. Nce2 {[%clk 0:02:28.1]} 10... Be7 {[%clk 0:02:13.9]} 11. Qd2 {[%clk
0:02:27.2]} 11... a5 {[%clk 0:02:09.2]} 12. O-O {[%clk 0:02:24.4]} 12... O-O
{[%clk 0:01:45]} 13. Rae1 {[%clk 0:02:16.2]} 13... Bg5 {[%clk 0:01:33.8]} 14.
Qd1 {[%clk 0:01:59.9]} 14... Qb6 {[%clk 0:01:22]} 15. exd5 {[%clk 0:01:43.2]}
15... Bxf4 {[%clk 0:01:06.3]} 16. dxc6 {[%clk 0:01:43.3]} 16... Be3+ {[%clk
0:01:03.5]} 17. Kh1 {[%clk 0:01:42.3]} 17... Nf6 {[%clk 0:01:00.8]} 18. f4
{[%clk 0:01:37.5]} 18... Qxc6 {[%clk 0:00:53.8]} 19. Rf3 {[%clk 0:01:26.1]}
19... Ng4 {[%clk 0:00:48]} 20. Ref1 {[%clk 0:01:19.2]} 20... Bb7 {[%clk
0:00:24.8]} 21. Ng3 {[%clk 0:01:13.3]} 21... Bxd4 {[%clk 0:00:18]} 22. Be4
{[%clk 0:01:11.9]} 22... Qb6 {[%clk 0:00:10.7]} 23. Bxb7 {[%clk 0:01:11.5]}
23... Rab8 {[%clk 0:00:10.6]} 24. Be4 {[%clk 0:01:00.7]} 24... Nf2+ {[%clk
0:00:10.4]} 25. R3xf2 {[%clk 0:01:01.2]} 25... Bxf2 {[%clk 0:00:11.3]} 26. Bxh7+
{[%clk 0:00:54.6]} 26... Kxh7 {[%clk 0:00:09.4]} 27. Qh5+ {[%clk 0:00:55.2]}
27... Kg8 {[%clk 0:00:09.2]} 28. Ne4 {[%clk 0:00:56.1]} 28... f6 {[%clk
0:00:01]} 29. Rxf2 {[%clk 0:00:52.4]} 29... Qb5 {[%clk 0:00:01.4]} 30. f5 {[%clk
0:00:40.8]} 30... Qd5 {[%clk 0:00:01.1]} 31. Ng3 {[%clk 0:00:35.9]} 1-0

[Event "*** Titled Tuesday Blitz"]
[Site "Chess.com"]
[Date "2020.05.19"]
[Round "3"]
[White "hansen"]
[Black "FMJoseHerrera"]
[Result "1-0"]
[WhiteElo "2965"]
[BlackElo "2645"]
[TimeControl "180+1"]
[EndTime "12:28:16 PDT"]
[Termination "hansen won on time"]

1. e4 {[%clk 0:02:54.7]} 1... c5 {[%clk 0:02:59.8]} 2. Nf3 {[%clk 0:02:53.6]}
2... e6 {[%clk 0:03:00.1]} 3. g3 {[%clk 0:02:43.7]} 3... b6 {[%clk 0:02:59]} 4.
Bg2 {[%clk 0:02:42.5]} 4... Bb7 {[%clk 0:02:58.5]} 5. Nc3 {[%clk 0:02:40.2]}
5... a6 {[%clk 0:02:58.3]} 6. O-O {[%clk 0:02:39.8]} 6... Qc7 {[%clk 0:02:57.2]}
7. Re1 {[%clk 0:02:38.6]} 7... d6 {[%clk 0:02:56.1]} 8. d4 {[%clk 0:02:35.2]}
8... cxd4 {[%clk 0:02:57]} 9. Nxd4 {[%clk 0:02:35.9]} 9... Be7 {[%clk
0:02:56.7]} 10. g4 {[%clk 0:02:06.1]} 10... Nd7 {[%clk 0:02:51.4]} 11. g5 {[%clk
0:02:03.8]} 11... g6 {[%clk 0:02:28.8]} 12. f4 {[%clk 0:01:53.2]} 12... h6
{[%clk 0:02:25.8]} 13. h4 {[%clk 0:01:28.4]} 13... hxg5 {[%clk 0:02:21.5]} 14.
hxg5 {[%clk 0:01:29.3]} 14... O-O-O {[%clk 0:02:11.4]} 15. Qg4 {[%clk 0:01:29]}
15... Kb8 {[%clk 0:02:04.3]} 16. Be3 {[%clk 0:01:27.2]} 16... e5 {[%clk
0:01:37.2]} 17. Nde2 {[%clk 0:01:20.9]} 17... f5 {[%clk 0:01:35.2]} 18. exf5
{[%clk 0:01:13.3]} 18... gxf5 {[%clk 0:01:34.5]} 19. Qg3 {[%clk 0:01:13.5]}
19... Nh6 {[%clk 0:01:18.1]} 20. Nd5 {[%clk 0:01:04.2]} 20... Bxd5 {[%clk
0:00:58.3]} 21. Bxd5 {[%clk 0:01:03.4]} 21... Ng4 {[%clk 0:00:59.2]} 22. c4
{[%clk 0:00:59.6]} 22... Rh5 {[%clk 0:00:40.5]} 23. Kg2 {[%clk 0:00:51.8]} 23...
Rh2+ {[%clk 0:00:36.3]} 24. Qxh2 {[%clk 0:00:47.3]} 24... Nxh2 {[%clk
0:00:33.4]} 25. Kxh2 {[%clk 0:00:47.5]} 25... exf4 {[%clk 0:00:26.9]} 26. Bxf4
{[%clk 0:00:44.3]} 26... Ne5 {[%clk 0:00:26.9]} 27. Nd4 {[%clk 0:00:44.4]} 27...
Rh8+ {[%clk 0:00:22.7]} 28. Kg3 {[%clk 0:00:41]} 28... Qc5 {[%clk 0:00:16.4]}
29. Rad1 {[%clk 0:00:34.7]} 29... Kc7 {[%clk 0:00:10.5]} 30. Ne6+ {[%clk
0:00:34.1]} 30... Kb8 {[%clk 0:00:09.1]} 31. Nxc5 {[%clk 0:00:35]} 31... bxc5
{[%clk 0:00:10]} 32. Rxe5 {[%clk 0:00:33.7]} 32... dxe5 {[%clk 0:00:10.9]} 33.
Bxe5+ {[%clk 0:00:34]} 1-0

[Event "*** Titled Tuesday Blitz"]
[Site "Chess.com"]
[Date "2020.05.19"]
[Round "3"]
[White "froylanajedrez"]
[Black "vpantev"]
[Result "0-1"]
[WhiteElo "2353"]
[BlackElo "2554"]
[TimeControl "180+1"]
[EndTime "12:28:16 PDT"]
[Termination "vpantev won by checkmate"]

1. d4 {[%clk 0:03:00.9]} 1... d6 {[%clk 0:02:57.5]} 2. Nf3 {[%clk 0:02:58.8]}
2... Bg4 {[%clk 0:02:54.7]} 3. Nbd2 {[%clk 0:02:54.2]} 3... Nd7 {[%clk
0:02:43.8]} 4. g3 {[%clk 0:02:53.3]} 4... c6 {[%clk 0:02:42.5]} 5. Bg2 {[%clk
0:02:45.1]} 5... Ngf6 {[%clk 0:02:41.4]} 6. h3 {[%clk 0:02:42.9]} 6... Bxf3
{[%clk 0:02:40.9]} 7. Nxf3 {[%clk 0:02:42.4]} 7... e6 {[%clk 0:02:37.2]} 8. O-O
{[%clk 0:02:41]} 8... d5 {[%clk 0:02:35.2]} 9. c4 {[%clk 0:02:36]} 9... Bd6
{[%clk 0:02:34.2]} 10. Qb3 {[%clk 0:02:23.8]} 10... Qb6 {[%clk 0:02:31.4]} 11.
c5 {[%clk 0:02:15.2]} 11... Qxb3 {[%clk 0:02:31.1]} 12. axb3 {[%clk 0:02:16.1]}
12... Bc7 {[%clk 0:02:31.2]} 13. b4 {[%clk 0:02:12.4]} 13... a6 {[%clk 0:02:31]}
14. Bf4 {[%clk 0:01:56.3]} 14... Bxf4 {[%clk 0:02:30.1]} 15. gxf4 {[%clk
0:01:57]} 15... h6 {[%clk 0:02:30.7]} 16. Ne5 {[%clk 0:01:55.2]} 16... Nxe5
{[%clk 0:02:28.7]} 17. fxe5 {[%clk 0:01:54.1]} 17... Ng8 {[%clk 0:02:24.6]} 18.
e4 {[%clk 0:01:36.6]} 18... dxe4 {[%clk 0:02:23.4]} 19. Bxe4 {[%clk 0:01:35.2]}
19... O-O-O {[%clk 0:02:21.7]} 20. Rfd1 {[%clk 0:01:27]} 20... Ne7 {[%clk
0:02:21.2]} 21. Ra3 {[%clk 0:01:20.3]} 21... Rd7 {[%clk 0:02:16.9]} 22. Rad3
{[%clk 0:00:57.1]} 22... Rhd8 {[%clk 0:02:15.1]} 23. Kg2 {[%clk 0:00:55.2]}
23... Rg8 {[%clk 0:02:08]} 24. Rf3 {[%clk 0:00:47.4]} 24... f5 {[%clk 0:02:07]}
25. exf6 {[%clk 0:00:37.6]} 25... gxf6+ {[%clk 0:02:05.8]} 26. Rg3 {[%clk
0:00:37.6]} 26... Rdd8 {[%clk 0:02:05.4]} 27. Rd3 {[%clk 0:00:27.9]} 27... Kd7
{[%clk 0:02:04]} 28. Rxg8 {[%clk 0:00:26.1]} 28... Rxg8+ {[%clk 0:02:03.2]} 29.
Rg3 {[%clk 0:00:26.8]} 29... Ke8 {[%clk 0:01:57.4]} 30. h4 {[%clk 0:00:19.5]}
30... Kf7 {[%clk 0:01:52.3]} 31. h5 {[%clk 0:00:17.4]} 31... Rg5 {[%clk
0:01:48.5]} 32. Rxg5 {[%clk 0:00:11]} 32... hxg5 {[%clk 0:01:43.5]} 33. Kg3
{[%clk 0:00:08.6]} 33... f5 {[%clk 0:01:43.2]} 34. Bg2 {[%clk 0:00:07.9]} 34...
Kf6 {[%clk 0:01:42.7]} 35. f4 {[%clk 0:00:08]} 35... Ng8 {[%clk 0:01:36.8]} 36.
Bf3 {[%clk 0:00:06.1]} 36... g4 {[%clk 0:01:31.1]} 37. Bg2 {[%clk 0:00:05.8]}
37... Kg7 {[%clk 0:01:30.7]} 38. Kh4 {[%clk 0:00:05.9]} 38... Kh6 {[%clk
0:01:30.5]} 39. b5 {[%clk 0:00:04.2]} 39... axb5 {[%clk 0:01:29.8]} 40. b4
{[%clk 0:00:01.7]} 40... Nf6 {[%clk 0:01:29.6]} 41. Bf1 {[%clk 0:00:02.6]} 41...
Nxh5 {[%clk 0:01:27.5]} 42. Bd3 {[%clk 0:00:03.2]} 42... Nxf4 {[%clk 0:01:27]}
43. Bc2 {[%clk 0:00:03.9]} 43... Ng6+ {[%clk 0:01:25.7]} 44. Kg3 {[%clk
0:00:02.2]} 44... Kg5 {[%clk 0:01:25.9]} 45. Bb3 {[%clk 0:00:02.7]} 45... Nf4
{[%clk 0:01:24.9]} 46. Ba2 {[%clk 0:00:02.1]} 46... Ne2+ {[%clk 0:01:24.8]} 47.
Kf2 {[%clk 0:00:02.3]} 47... Nxd4 {[%clk 0:01:24.9]} 48. Ke3 {[%clk 0:00:03.2]}
48... e5 {[%clk 0:01:24.9]} 49. Bf7 {[%clk 0:00:02.2]} 49... g3 {[%clk
0:01:24.7]} 50. Kd2 {[%clk 0:00:01.8]} 50... g2 {[%clk 0:01:24]} 51. Ke1 {[%clk
0:00:02.7]} 51... g1=Q+ {[%clk 0:01:24]} 52. Kd2 {[%clk 0:00:02.3]} 52... Qf2+
{[%clk 0:01:24]} 53. Kc3 {[%clk 0:00:03.2]} 53... Qc2# {[%clk 0:01:23.9]} 0-1

[Event "*** Titled Tuesday Blitz"]
[Site "Chess.com"]
[Date "2020.05.19"]
[Round "3"]
[White "BabyBoss31"]
[Black "SCIM"]
[Result "1-0"]
[WhiteElo "2345"]
[BlackElo "2528"]
[TimeControl "180+1"]
[EndTime "12:28:16 PDT"]
[Termination "BabyBoss31 won by checkmate"]

1. d4 {[%clk 0:03:00.9]} 1... Nf6 {[%clk 0:02:59.2]} 2. c4 {[%clk 0:03:00.2]}
2... g6 {[%clk 0:02:58.6]} 3. Nc3 {[%clk 0:02:59.9]} 3... d5 {[%clk 0:02:58.4]}
4. cxd5 {[%clk 0:02:53.3]} 4... Nxd5 {[%clk 0:02:59.3]} 5. e4 {[%clk 0:02:53.8]}
5... Nxc3 {[%clk 0:02:58.8]} 6. bxc3 {[%clk 0:02:54.7]} 6... Bg7 {[%clk
0:02:58.2]} 7. Bc4 {[%clk 0:02:54.1]} 7... c5 {[%clk 0:02:58.2]} 8. Ne2 {[%clk
0:02:53.6]} 8... O-O {[%clk 0:02:58.2]} 9. Be3 {[%clk 0:02:53]} 9... Nc6 {[%clk
0:02:58.5]} 10. O-O {[%clk 0:02:52.6]} 10... b6 {[%clk 0:02:59.1]} 11. dxc5
{[%clk 0:02:46.8]} 11... Qc7 {[%clk 0:02:59]} 12. Nd4 {[%clk 0:02:45.5]} 12...
Ne5 {[%clk 0:02:57.5]} 13. Nb5 {[%clk 0:02:42.9]} 13... Qb8 {[%clk 0:02:57.4]}
14. Bd5 {[%clk 0:02:38.9]} 14... Ng4 {[%clk 0:02:44.9]} 15. g3 {[%clk
0:02:36.3]} 15... Nxe3 {[%clk 0:02:44.8]} 16. fxe3 {[%clk 0:02:34.7]} 16... bxc5
{[%clk 0:02:36.9]} 17. Bxa8 {[%clk 0:02:17.1]} 17... Qxa8 {[%clk 0:02:35.6]} 18.
Qd5 {[%clk 0:02:06]} 18... Bb7 {[%clk 0:02:26.3]} 19. Qxc5 {[%clk 0:02:05.9]}
19... Bxe4 {[%clk 0:02:26.4]} 20. Qxe7 {[%clk 0:02:00.2]} 20... Bd3 {[%clk
0:02:11.3]} 21. Nc7 {[%clk 0:01:41.3]} 21... Qc6 {[%clk 0:02:08.1]} 22. Rf2
{[%clk 0:01:31.8]} 22... Bc4 {[%clk 0:01:51.9]} 23. Rd1 {[%clk 0:01:22.4]} 23...
h5 {[%clk 0:01:33]} 24. Rd7 {[%clk 0:01:06.2]} 24... h4 {[%clk 0:00:53.5]} 25.
Ne8 {[%clk 0:00:54.9]} 25... Bxc3 {[%clk 0:00:36.4]} 26. Nd6 {[%clk 0:00:46.1]}
26... Bb4 {[%clk 0:00:26.3]} 27. Rd8 {[%clk 0:00:31]} 27... Rxd8 {[%clk
0:00:16.9]} 28. Qxd8+ {[%clk 0:00:31.9]} 28... Kg7 {[%clk 0:00:15.5]} 29. Ne8+
{[%clk 0:00:30.8]} 29... Kf8 {[%clk 0:00:10.7]} 30. Nf6+ {[%clk 0:00:23.2]}
30... Kg7 {[%clk 0:00:10.6]} 31. Qg8+ {[%clk 0:00:21.7]} 31... Kh6 {[%clk
0:00:11.1]} 32. Qh8+ {[%clk 0:00:20.5]} 32... Kg5 {[%clk 0:00:11.5]} 33. Qxh4#
{[%clk 0:00:21]} 1-0

[Event "*** Titled Tuesday Blitz"]
[Site "Chess.com"]
[Date "2020.05.19"]
[Round "3"]
[White "VaKukl"]
[Black "Unknown_IM"]
[Result "1/2-1/2"]
[WhiteElo "2360"]
[BlackElo "2544"]
[TimeControl "180+1"]
[EndTime "12:28:18 PDT"]
[Termination "Game drawn by repetition"]

1. e4 {[%clk 0:03:00.9]} 1... c5 {[%clk 0:02:55.5]} 2. Nc3 {[%clk 0:03:00.5]}
2... Nc6 {[%clk 0:02:54]} 3. g3 {[%clk 0:03:00.5]} 3... g6 {[%clk 0:02:54.3]} 4.
Bg2 {[%clk 0:03:00.8]} 4... Bg7 {[%clk 0:02:54.9]} 5. d3 {[%clk 0:03:01.3]} 5...
d6 {[%clk 0:02:53.6]} 6. Be3 {[%clk 0:03:01.4]} 6... e6 {[%clk 0:02:54.2]} 7.
Qd2 {[%clk 0:03:01.6]} 7... Rb8 {[%clk 0:02:53.8]} 8. Nge2 {[%clk 0:03:01]} 8...
b5 {[%clk 0:02:53.8]} 9. O-O {[%clk 0:03:00.5]} 9... Nge7 {[%clk 0:02:53.1]} 10.
Bh6 {[%clk 0:02:59.7]} 10... O-O {[%clk 0:02:52.8]} 11. Bxg7 {[%clk 0:02:59.5]}
11... Kxg7 {[%clk 0:02:52.8]} 12. d4 {[%clk 0:02:59.8]} 12... b4 {[%clk
0:02:41.9]} 13. Nd1 {[%clk 0:02:59.6]} 13... e5 {[%clk 0:02:42.3]} 14. c3 {[%clk
0:02:43.7]} 14... bxc3 {[%clk 0:02:33.8]} 15. bxc3 {[%clk 0:02:43.6]} 15... Qa5
{[%clk 0:02:33.1]} 16. dxc5 {[%clk 0:02:40]} 16... Qxc5 {[%clk 0:02:22.8]} 17.
Ne3 {[%clk 0:02:37.1]} 17... Be6 {[%clk 0:02:15.1]} 18. Rfd1 {[%clk 0:02:36.5]}
18... Rfd8 {[%clk 0:02:14.4]} 19. f4 {[%clk 0:02:25.5]} 19... Bg4 {[%clk
0:01:56.5]} 20. Rac1 {[%clk 0:02:07.3]} 20... Na5 {[%clk 0:01:35.9]} 21. Kh1
{[%clk 0:02:06.1]} 21... Nc4 {[%clk 0:01:30.2]} 22. Nxc4 {[%clk 0:01:57.1]}
22... Qxc4 {[%clk 0:01:31.1]} 23. Re1 {[%clk 0:01:57.2]} 23... Nc6 {[%clk
0:01:28.6]} 24. f5 {[%clk 0:01:53.9]} 24... Na5 {[%clk 0:01:25.7]} 25. h3 {[%clk
0:01:43]} 25... Bxe2 {[%clk 0:01:22.9]} 26. Rxe2 {[%clk 0:01:43.2]} 26... f6
{[%clk 0:01:14.3]} 27. Rf2 {[%clk 0:01:41.4]} 27... Qc5 {[%clk 0:01:13]} 28.
fxg6 {[%clk 0:01:37.7]} 28... hxg6 {[%clk 0:01:11.9]} 29. Rcf1 {[%clk
0:01:37.1]} 29... Nc4 {[%clk 0:01:11.9]} 30. Qd1 {[%clk 0:01:30.5]} 30... Ne3
{[%clk 0:01:10.4]} 31. Qf3 {[%clk 0:01:28]} 31... Rf8 {[%clk 0:01:06]} 32. Re1
{[%clk 0:01:28]} 32... Nxg2 {[%clk 0:00:58]} 33. Kxg2 {[%clk 0:01:27.5]} 33...
f5 {[%clk 0:00:58.6]} 34. Qe3 {[%clk 0:01:14.9]} 34... Qc6 {[%clk 0:00:53.2]}
35. Kg1 {[%clk 0:01:04.2]} 35... fxe4 {[%clk 0:00:39]} 36. Qxa7+ {[%clk
0:01:00.5]} 36... Rb7 {[%clk 0:00:36.5]} 37. Qe3 {[%clk 0:00:55.2]} 37... Rxf2
{[%clk 0:00:29.1]} 38. Kxf2 {[%clk 0:00:55]} 38... Rb2+ {[%clk 0:00:27.3]} 39.
Re2 {[%clk 0:00:54.5]} 39... Rxe2+ {[%clk 0:00:26.4]} 40. Qxe2 {[%clk
0:00:50.7]} 40... Qxc3 {[%clk 0:00:26.3]} 41. Qxe4 {[%clk 0:00:49.9]} 41... Qb2+
{[%clk 0:00:24.4]} 42. Qe2 {[%clk 0:00:49.7]} 42... Qd4+ {[%clk 0:00:24.4]} 43.
Qe3 {[%clk 0:00:49.3]} 43... Qb2+ {[%clk 0:00:24.5]} 44. Qe2 {[%clk 0:00:49]}
44... Qd4+ {[%clk 0:00:24.8]} 45. Qe3 {[%clk 0:00:49]} 45... Qb2+ {[%clk
0:00:24.3]} 46. Qe2 {[%clk 0:00:48.2]} 1/2-1/2

[Event "*** Titled Tuesday Blitz"]
[Site "Chess.com"]
[Date "2020.05.19"]
[Round "3"]
[White "nabukatnezarr"]
[Black "Perecke"]
[Result "1-0"]
[WhiteElo "2509"]
[BlackElo "2269"]
[TimeControl "180+1"]
[EndTime "12:28:18 PDT"]
[Termination "nabukatnezarr won by resignation"]

1. Nf3 {[%clk 0:03:00.9]} 1... d5 {[%clk 0:02:59.5]} 2. g3 {[%clk 0:02:59]} 2...
c6 {[%clk 0:02:56.7]} 3. c4 {[%clk 0:02:59.3]} 3... Bg4 {[%clk 0:02:52]} 4. Bg2
{[%clk 0:02:59]} 4... e6 {[%clk 0:02:48.5]} 5. O-O {[%clk 0:02:58.5]} 5... Bd6
{[%clk 0:02:47]} 6. b3 {[%clk 0:02:58.7]} 6... Ne7 {[%clk 0:02:46]} 7. Bb2
{[%clk 0:02:58.6]} 7... O-O {[%clk 0:02:46]} 8. d4 {[%clk 0:02:56.6]} 8... Nd7
{[%clk 0:02:45.5]} 9. Nbd2 {[%clk 0:02:55.7]} 9... Nf6 {[%clk 0:02:43.9]} 10.
Ne5 {[%clk 0:02:54.4]} 10... Bf5 {[%clk 0:02:36]} 11. Re1 {[%clk 0:02:38.6]}
11... Ne4 {[%clk 0:02:21.6]} 12. Nxe4 {[%clk 0:02:34.4]} 12... Bxe4 {[%clk
0:02:18.7]} 13. Bh3 {[%clk 0:02:30.9]} 13... Bf5 {[%clk 0:02:07.2]} 14. Bg2
{[%clk 0:02:29.4]} 14... Be4 {[%clk 0:02:05.6]} 15. Bf1 {[%clk 0:02:29.5]} 15...
f6 {[%clk 0:02:03.8]} 16. Nf3 {[%clk 0:02:28.9]} 16... Qc7 {[%clk 0:01:47]} 17.
Nd2 {[%clk 0:02:26.3]} 17... Bg6 {[%clk 0:01:46.5]} 18. e4 {[%clk 0:02:26.5]}
18... Rfe8 {[%clk 0:01:41.5]} 19. Rc1 {[%clk 0:02:24.4]} 19... Bb4 {[%clk
0:01:35.5]} 20. e5 {[%clk 0:02:17]} 20... fxe5 {[%clk 0:01:27]} 21. a3 {[%clk
0:02:14.2]} 21... Bxd2 {[%clk 0:01:24.8]} 22. Qxd2 {[%clk 0:02:15.1]} 22... e4
{[%clk 0:01:22.8]} 23. f3 {[%clk 0:02:12.1]} 23... Rf8 {[%clk 0:01:15.3]} 24.
fxe4 {[%clk 0:02:07.2]} 24... Bxe4 {[%clk 0:01:16.2]} 25. Bh3 {[%clk 0:02:05.1]}
25... Nf5 {[%clk 0:01:13.7]} 26. Re2 {[%clk 0:01:58]} 26... Nxg3 {[%clk
0:01:00.8]} 27. hxg3 {[%clk 0:01:46.3]} 27... Qxg3+ {[%clk 0:00:46.3]} 28. Bg2
{[%clk 0:01:46.8]} 28... Bxg2 {[%clk 0:00:45.7]} 29. Rxg2 {[%clk 0:01:47.7]}
29... Qxb3 {[%clk 0:00:44.7]} 30. Qc3 {[%clk 0:01:14.2]} 30... Qxc3 {[%clk
0:00:41.4]} 31. Rxc3 {[%clk 0:01:15.1]} 31... Rf4 {[%clk 0:00:39.8]} 32. Re3
{[%clk 0:01:10.6]} 32... Kf7 {[%clk 0:00:33.5]} 33. Rf2 {[%clk 0:01:06.8]} 33...
Rxf2 {[%clk 0:00:33]} 34. Kxf2 {[%clk 0:01:07.7]} 34... dxc4 {[%clk 0:00:29.6]}
35. Re5 {[%clk 0:01:03.5]} 35... b5 {[%clk 0:00:20.7]} 36. Rc5 {[%clk
0:01:01.3]} 36... Rc8 {[%clk 0:00:20.5]} 37. Bc3 {[%clk 0:01:01.8]} 37... Ke7
{[%clk 0:00:19.5]} 38. Rh5 {[%clk 0:00:53.9]} 38... h6 {[%clk 0:00:17.1]} 39.
Ke3 {[%clk 0:00:52.7]} 39... Rf8 {[%clk 0:00:16.1]} 40. Bb4+ {[%clk 0:00:48.4]}
1-0

[Event "*** Titled Tuesday Blitz"]
[Site "Chess.com"]
[Date "2020.05.19"]
[Round "3"]
[White "SlavenPastar"]
[Black "olksuna"]
[Result "0-1"]
[WhiteElo "2385"]
[BlackElo "2584"]
[TimeControl "180+1"]
[EndTime "12:28:19 PDT"]
[Termination "olksuna won on time"]

1. d4 {[%clk 0:02:45.2]} 1... Nf6 {[%clk 0:02:56.6]} 2. c4 {[%clk 0:02:45.7]}
2... g6 {[%clk 0:02:57.2]} 3. Nc3 {[%clk 0:02:46]} 3... d5 {[%clk 0:02:57.8]} 4.
e3 {[%clk 0:02:46]} 4... Bg7 {[%clk 0:02:57.6]} 5. Nf3 {[%clk 0:02:46.1]} 5...
O-O {[%clk 0:02:57.5]} 6. Qb3 {[%clk 0:02:45.5]} 6... e6 {[%clk 0:02:56.3]} 7.
Be2 {[%clk 0:02:46.1]} 7... b6 {[%clk 0:02:56.8]} 8. O-O {[%clk 0:02:42.5]} 8...
Bb7 {[%clk 0:02:57.2]} 9. cxd5 {[%clk 0:02:42.5]} 9... exd5 {[%clk 0:02:54.5]}
10. Qc2 {[%clk 0:02:42]} 10... Nbd7 {[%clk 0:02:52.1]} 11. b4 {[%clk 0:02:41.9]}
11... c5 {[%clk 0:02:48.1]} 12. bxc5 {[%clk 0:02:38.3]} 12... bxc5 {[%clk
0:02:48.4]} 13. Rb1 {[%clk 0:02:36.6]} 13... Qc8 {[%clk 0:02:37.6]} 14. dxc5
{[%clk 0:02:30.8]} 14... Re8 {[%clk 0:02:22.3]} 15. Ba3 {[%clk 0:01:57]} 15...
Nxc5 {[%clk 0:02:03.3]} 16. Nb5 {[%clk 0:01:29.6]} 16... Nce4 {[%clk 0:02:02.6]}
17. Qxc8 {[%clk 0:01:23.5]} 17... Rexc8 {[%clk 0:01:53.6]} 18. Nbd4 {[%clk
0:01:11.7]} 18... Rab8 {[%clk 0:01:44.8]} 19. Rfc1 {[%clk 0:01:09.5]} 19... Nc3
{[%clk 0:01:39.8]} 20. Bd6 {[%clk 0:00:56.6]} 20... Nxe2+ {[%clk 0:01:34]} 21.
Nxe2 {[%clk 0:00:55]} 21... Rxc1+ {[%clk 0:01:34.6]} 22. Nxc1 {[%clk 0:00:53.3]}
22... Rc8 {[%clk 0:01:34.6]} 23. Nd3 {[%clk 0:00:43]} 23... Ba6 {[%clk
0:01:33.5]} 24. Nde5 {[%clk 0:00:33.1]} 24... Ne4 {[%clk 0:01:25.5]} 25. Ba3
{[%clk 0:00:28.9]} 25... Nc3 {[%clk 0:01:19.3]} 26. Re1 {[%clk 0:00:18.4]} 26...
Nxa2 {[%clk 0:01:14.5]} 27. Nd7 {[%clk 0:00:13.9]} 27... Nc3 {[%clk 0:01:09.3]}
28. Nc5 {[%clk 0:00:11.1]} 28... Bc4 {[%clk 0:01:09.4]} 29. Nd4 {[%clk
0:00:09.8]} 29... Bf8 {[%clk 0:01:04.1]} 30. Bb2 {[%clk 0:00:04.6]} 30... Ne4
{[%clk 0:00:46.9]} 31. Ncb3 {[%clk 0:00:04.1]} 31... Rb8 {[%clk 0:00:43]} 32. f3
{[%clk 0:00:02.7]} 32... Nd6 {[%clk 0:00:39.6]} 0-1

[Event "*** Titled Tuesday Blitz"]
[Site "Chess.com"]
[Date "2020.05.19"]
[Round "3"]
[White "Belka1989"]
[Black "DishonorOnYourCow"]
[Result "0-1"]
[WhiteElo "2148"]
[BlackElo "2340"]
[TimeControl "180+1"]
[EndTime "12:28:21 PDT"]
[Termination "DishonorOnYourCow won by resignation"]

1. d4 {[%clk 0:03:00.9]} 1... Nf6 {[%clk 0:02:59.4]} 2. Nf3 {[%clk 0:03:01.2]}
2... g6 {[%clk 0:02:57.9]} 3. Bf4 {[%clk 0:03:01.7]} 3... Bg7 {[%clk 0:02:55.9]}
4. e3 {[%clk 0:03:02.3]} 4... d5 {[%clk 0:02:55.2]} 5. Bd3 {[%clk 0:02:59.2]}
5... O-O {[%clk 0:02:50.3]} 6. c3 {[%clk 0:02:58.2]} 6... c5 {[%clk 0:02:47.7]}
7. O-O {[%clk 0:02:55]} 7... b6 {[%clk 0:02:46.6]} 8. h3 {[%clk 0:02:36]} 8...
Bb7 {[%clk 0:02:46]} 9. Nbd2 {[%clk 0:02:35.4]} 9... Nc6 {[%clk 0:02:42.8]} 10.
Ne5 {[%clk 0:02:34.1]} 10... Nd7 {[%clk 0:02:41.7]} 11. Nxd7 {[%clk 0:02:21.4]}
11... Qxd7 {[%clk 0:02:40.8]} 12. Nf3 {[%clk 0:02:13.9]} 12... Rfe8 {[%clk
0:02:37.4]} 13. Bb5 {[%clk 0:02:02.6]} 13... a6 {[%clk 0:02:31.2]} 14. Bxc6
{[%clk 0:02:01.9]} 14... Qxc6 {[%clk 0:02:30.7]} 15. Ne5 {[%clk 0:01:58.3]}
15... Qc8 {[%clk 0:02:30.6]} 16. a4 {[%clk 0:01:51.7]} 16... f6 {[%clk
0:02:23.5]} 17. Nf3 {[%clk 0:01:41.2]} 17... e5 {[%clk 0:02:17.8]} 18. Bh2
{[%clk 0:01:19.3]} 18... e4 {[%clk 0:01:56.8]} 19. Nd2 {[%clk 0:01:18.9]} 19...
f5 {[%clk 0:01:38.6]} 20. Qb3 {[%clk 0:01:06.2]} 20... Qc6 {[%clk 0:01:31.2]}
21. Rfd1 {[%clk 0:00:54.9]} 21... g5 {[%clk 0:01:13.5]} 22. dxc5 {[%clk
0:00:30.2]} 22... bxc5 {[%clk 0:01:11.7]} 23. c4 {[%clk 0:00:23.8]} 23... d4
{[%clk 0:01:05.7]} 24. exd4 {[%clk 0:00:20.5]} 24... cxd4 {[%clk 0:01:04]} 25.
c5+ {[%clk 0:00:06]} 25... Qd5 {[%clk 0:01:03.4]} 26. Qxd5+ {[%clk 0:00:03]}
26... Bxd5 {[%clk 0:01:04.3]} 27. Rab1 {[%clk 0:00:03.3]} 27... d3 {[%clk
0:01:04]} 28. b3 {[%clk 0:00:03]} 28... f4 {[%clk 0:01:02.1]} 29. Nc4 {[%clk
0:00:03]} 29... Bd4 {[%clk 0:01:00]} 30. Nd6 {[%clk 0:00:02.3]} 30... Rf8 {[%clk
0:00:57.4]} 31. b4 {[%clk 0:00:02.9]} 31... a5 {[%clk 0:00:47.9]} 32. b5 {[%clk
0:00:03]} 32... Bxc5 {[%clk 0:00:47.6]} 33. Nb7 {[%clk 0:00:02.6]} 33... Bxb7
{[%clk 0:00:47.2]} 34. Rdc1 {[%clk 0:00:03.1]} 34... Bd4 {[%clk 0:00:46.7]} 35.
Rc7 {[%clk 0:00:03.4]} 35... Rf7 {[%clk 0:00:46.7]} 36. Rcc1 {[%clk 0:00:02.2]}
36... e3 {[%clk 0:00:46.6]} 37. fxe3 {[%clk 0:00:01.5]} 37... fxe3 {[%clk
0:00:47.5]} 38. Kh1 {[%clk 0:00:02]} 38... e2 {[%clk 0:00:47.3]} 39. Rc4 {[%clk
0:00:02.1]} 39... d2 {[%clk 0:00:46.8]} 40. Rxd4 {[%clk 0:00:02]} 40... e1=Q+
{[%clk 0:00:46.3]} 0-1